Cogmind - Beta 12 @@@ ROGUE MODE // 2023.08.14 @ 17:00:44 Player: CrossedViper Result: Escaped! Performance ------------- Evolutions (9) 4500 Regions Visited (30) 6000 Robots Destroyed (382) 1910 Value Destroyed (22555) 22555 Prototype IDs (307) 6140 Alien Tech Used (2) 400 Bonus (31754) 31754 TOTAL SCORE: 73259 Bonus ------- High Alert Combat Kills 6049 Follower Combat Kills 1197 Entered Garrisons 1200 Used RIF Installer 4000 Aligned with FarCom 300 Met Zhirov 300 Hacked Protovariant 500 Acquired SGEMP 2000 Delivered SGEMP 2000 Met MAIN.C 5000 Destroyed MAIN.C Shell 5000 Zhirov Destroyed MAIN.C 3000 Win 3000 Friendly Fire -1792 Cogmind --------- Core Integrity 924/1600 Matter 300/300 Energy 819/840 System Corruption 16% Temperature Cool (20) Movement Treading (160) Location To Epsilon Eridani Parts ------- > --- POWER (3) -------- Zero-point Reactor Vortex Chain Reactor > --- PROPULSION (6) --- Advanced Heavy Siege Treads Advanced Heavy Siege Treads High-density Centrium Heavy Treads > --- UTILITY (14) ----- Advanced Cooling System Advanced Coolant Injector High-capacity Storage Unit Experimental Targeting Computer Advanced Target Analyzer Advanced Weapon Cycler Experimental Transmission Jammer Experimental ECM Suite Experimental Core Shielding Centrium Heavy Armor Plating Experimental Powered Armor Graphene Brace AEGIS Remote Shield > --- WEAPON (2) ------- Improved Potential Cannon > --- INVENTORY (20) --- High-density Centrium Heavy Treads Experimental Biometal Medium Treads Experimental Energy Well (600) Experimental Energy Well (600) YI-UF0's Bottomless Matter Pit (1500) Heavy Quantum Rifle Firepult Cooled Nova Cannon Helical Railgun Graviton Cannon Graviton Cannon Point Singularity Launcher Peak State ------------ > --- POWER ------------ Zero-point Reactor Vortex Chain Reactor > --- PROPULSION ------- Advanced Heavy Siege Treads Advanced Heavy Siege Treads High-density Centrium Heavy Treads > --- UTILITY ---------- Experimental Coolant Injector High-capacity Storage Unit Experimental Optical Array Experimental Targeting Computer Experimental Core Analyzer Experimental Core Analyzer Improved Armor Integrity Analyzer Quantum Capacitor Advanced Weapon Cycler Centrium Heavy Armor Plating Graphene Brace AEGIS Remote Shield > --- WEAPON ----------- Improved Potential Cannon > --- INVENTORY -------- Zero-point Reactor High-density Centrium Heavy Treads Experimental Biometal Medium Treads Experimental Energy Well Experimental Energy Well YI-UF0's Bottomless Matter Pit Experimental Target Analyzer Experimental Transmission Jammer Experimental ECM Suite Experimental Force Field Heavy Quantum Rifle Firepult Cooled Nova Cannon Helical Railgun Graviton Cannon Graviton Cannon Graviton Cannon Point Singularity Launcher [Rating: 239] Favorites ----------- Power Improved Ion Engine Engine Improved Ion Engine Power Core Enhanced Fission Core Reactor Quantum Reactor Propulsion Light Treads Treads Light Treads Leg Advanced VSS Leg Wheel Centrium Wheel Flight Unit Improved VTOL Module Utility High-capacity Storage Unit Device Advanced Cooling System Storage High-capacity Storage Unit Processor Advanced Targeting Computer Hackware Relay Coupler [NC] Protection Centrium Heavy Armor Plating Weapon Enhanced Autogun Energy Gun Wave Gun Energy Cannon Nova Cannon Ballistic Gun Enhanced Autogun Ballistic Cannon Heavy Linear Accelerator Launcher Rocket Launcher Special Weapon Improved Plasma Cutter Slashing Weapon Katana Build | -11 -10 -10 -10 -9 -8 -8 -8 -8 -7 -7 -7 -7 -6 -6 -6 -6 -5 -5 -5 -5 -5 -5 -4 -4 -4 -3 -2 -2 -1 -1 ------- Run | Jun Mat Min Exi Min Mat Gar Mat Gar Fac Gar Fac Gar Fac Was Fac Gar Fac Was Fac Upp Upp Zhi Pro Fac Gar Res Res Tes Acc Com Slots Evolved 18 | . . . . . 4 . . . 2 . . . 2 . . . 2 . . . . . . 2 . 2 2 . 2 . Power 2 | . . . . . . . . . . . . . 1 . . . . . . . . . . . . . 1 . . . Propulsion 4 | . . . . . 2 . . . . . . . . . . . . . . . . . . 2 . . . . . . Utility 12 | . . . . . 2 . . . 2 . . . 1 . . . 2 . . . . . . . . 2 1 . 2 . Weapon . | . . . . . . . . . . . . . . . . . . . . . . . . . . . . . . . Parts Attached 449 | 6 6 5 1 . 37 20 4 11 9 28 3 21 3 8 6 11 4 6 . 3 8 7 5 7 43 7 32 62 7 79 Power 49 | 1 1 . . . 3 1 . 1 3 3 . 4 1 2 . 3 1 . . 1 1 1 . . 5 1 3 5 . 8 Engine 15 | 1 1 . . . 3 1 . . 3 . . 1 1 . . 2 . . . 1 1 . . . . . . . . . Core 10 | . . . . . . . . 1 . 1 . 3 . . . . 1 . . . . . . . 2 . . 2 . . Reactor 24 | . . . . . . . . . . 2 . . . 2 . 1 . . . . . 1 . . 3 1 3 3 . 8 Propulsion 77 | 2 . . . . 15 3 3 . 1 6 3 7 . . . 1 . 4 . . 3 . . 4 5 . 10 4 . 6 Treads 62 | 2 . . . . 10 3 3 . 1 . 2 4 . . . 1 . 4 . . 3 . . 4 5 . 10 4 . 6 Leg 10 | . . . . . 4 . . . . 6 . . . . . . . . . . . . . . . . . . . . Wheel 4 | . . . . . . . . . . . 1 3 . . . . . . . . . . . . . . . . . . Hover . | . . . . . . . . . . . . . . . . . . . . . . . . . . . . . . . Flight 1 | . . . . . 1 . . . . . . . . . . . . . . . . . . . . . . . . . Utility 155 | 1 2 1 1 . 7 4 . 2 3 4 . 1 1 3 4 4 3 . . 1 4 5 1 3 15 6 11 22 6 40 Device 91 | . . . . . 5 2 . . . 2 . . 1 1 2 1 2 . . . 2 3 . 2 9 2 9 16 6 26 Storage 11 | 1 2 1 1 . . . . . . . . . . . . . . . . . . 1 . . . 1 . 3 . 1 Processor 13 | . . . . . . . . 1 1 . . . . . . 1 . . . . . . 1 . 1 . 2 . . 6 Hackware 9 | . . . . . 1 . . . 1 1 . . . . . 1 . . . 1 . . . . 2 1 . 1 . . Protection 31 | . . . . . 1 2 . 1 1 1 . 1 . 2 2 1 1 . . . 2 1 . 1 3 2 . 2 . 7 Artifact . | . . . . . . . . . . . . . . . . . . . . . . . . . . . . . . . Weapon 168 | 2 3 4 . . 12 12 1 8 2 15 . 9 1 3 2 3 . 2 . 1 . 1 4 . 18 . 8 31 1 25 Energy Gun 41 | 2 1 . . . 7 1 1 2 . 3 . 2 . . 1 1 . . . . . . . . 1 . . 15 1 3 Energy Cannon 50 | . . . . . . . . 2 . . . 2 1 2 1 . . 1 . . . . . . 14 . 7 8 . 12 Ballistic Gun 31 | . . 3 . . 2 6 . 3 2 7 . 3 . 1 . . . . . . . . . . 1 . . 2 . 1 Ballistic Cannon 16 | . . . . . . . . . . . . 2 . . . 2 . 1 . 1 . 1 2 . 2 . . 1 . 4 Launcher 20 | . 2 1 . . 2 2 . 1 . 5 . . . . . . . . . . . . 2 . . . . 2 . 3 Special Weapon 7 | . . . . . 1 . . . . . . . . . . . . . . . . . . . . . 1 3 . 2 Impact Weapon . | . . . . . . . . . . . . . . . . . . . . . . . . . . . . . . . Slashing Weapon 3 | . . . . . . 3 . . . . . . . . . . . . . . . . . . . . . . . . Piercing Weapon . | . . . . . . . . . . . . . . . . . . . . . . . . . . . . . . . Special Melee Weapon . | . . . . . . . . . . . . . . . . . . . . . . . . . . . . . . . Unidentified Prototypes 53 | . . 1 . . 3 1 . . 2 . . . . . 1 . 1 . . . . 4 . . 1 1 4 17 1 16 Parts Lost 83 | . 1 . . . 8 5 . 4 1 12 1 9 . . 1 6 1 . . 2 2 . . 3 6 5 4 2 1 9 Power 16 | . . . . . 1 1 . 1 . 2 . 3 . . . 2 . . . . . . . . 1 1 1 2 . 1 Propulsion 23 | . . . . . 4 2 . 2 . 4 1 4 . . . . 1 . . . 2 . . . 1 . 1 . . 1 Utility 31 | . . . . . 1 . . 1 . 3 . 1 . . 1 3 . . . 1 . . . 3 3 4 2 . 1 7 Weapon 13 | . 1 . . . 2 2 . . 1 3 . 1 . . . 1 . . . 1 . . . . 1 . . . . . Highest Loss Streak 5 | . 1 . . . 4 2 . 4 1 5 1 5 . . 1 3 1 . . 1 1 . . 3 2 2 3 1 1 4 To Critical Strikes 2 | . . . . . 1 . . . . . . . . . . . . . . . . . . . . . 1 . . . Average Slot Usage (%) 84 | . 82 84 85 85 89 94 99 95 82 90 99 89 93 90 90 85 83 87 82 81 85 82 87 84 82 79 83 76 72 70 Engine 4 | . 14 14 14 14 9 8 9 6 2 2 . 2 6 6 6 6 10 5 5 5 5 2 . . . . . . . . Core 1 | . . . . . . . . 1 . 1 . 3 6 . . . . 5 5 5 5 5 5 5 3 . . 2 4 . Reactor 4 | . . . . . . . . . . 3 7 . . 5 6 4 . . . . . 2 5 5 6 9 13 8 8 8 Treads 17 | . 28 28 28 28 30 31 35 33 21 2 1 12 . . . 5 5 10 11 11 14 17 17 22 17 14 15 17 16 12 Leg 1 | . . . . . 2 . . . . 23 27 . . . . . . . . . . . . . . . . . . . Wheel 1 | . . . . . . . . . . . . 8 20 20 20 13 11 5 . . . . . . . . . . . . Device 14 | . . . . . 11 10 18 16 7 10 15 13 13 10 7 12 16 17 17 17 11 10 10 7 19 23 23 10 18 23 Storage 6 | . 14 14 14 14 9 9 9 9 7 7 7 7 6 6 6 6 5 5 5 5 5 5 5 5 5 3 4 4 4 4 Processor 7 | . . . . . . . . 1 7 7 7 7 6 6 6 11 11 11 11 11 11 11 11 12 10 9 14 13 10 11 Hackware 5 | . . . . . . 7 . . 7 11 15 15 13 13 11 6 11 11 11 16 17 17 17 10 7 4 4 7 4 . Protection 4 | . . . . . 7 9 9 8 13 3 . 1 6 8 9 5 2 5 5 . 4 5 5 6 2 2 . 3 4 4 Energy Gun 2 | . 24 . . . 5 . 7 7 . 2 7 4 2 . 2 2 . . . . . . . . . . . 4 2 . Energy Cannon 1 | . . . . . . . . . . . . . 4 6 6 2 . 4 . . . . . . 4 9 6 1 1 3 Ballistic Gun 5 | . . 18 28 28 12 13 10 9 13 12 7 4 6 4 3 . . . . . . . . . . . . 1 . . Ballistic Cannon 1 | . . . . . . . . . . . . 3 . . . 3 5 . 5 5 5 . 4 5 2 . . . . 1 Naked Turns . | . . . . . . . . . . . . . . . . . . . . . . . . . . . . . . . Heaviest Build 216 | 12 31 33 71 51 56 66 68 70 69 70 67 67 87 104 100 109 105 103 103 103 98 100 100 104 112 139 151 149 151 216 Greatest Support 255 | 40 40 40 40 40 86 96 94 94 72 72 64 60 60 60 60 70 32 70 70 140 140 123 123 181 230 230 250 250 250 255 Greatest Overweight (x) 19 | . . . 1 1 5 . . 2 1 19 2 3 1 1 1 3 3 3 1 1 . . . . . . . . . 1 Average Overweight (x) . | . . . . 1 . . . . . 1 1 1 1 1 1 2 2 2 1 . . . . . . . . . . . Largest Inventory Capacity 20 | 8 15 15 20 20 20 20 20 20 20 20 20 20 20 20 20 20 20 20 20 20 20 20 20 20 20 20 20 20 20 20 Average Capacity 19 | 6 11 15 18 20 20 20 20 20 20 20 20 20 20 20 20 20 20 20 20 20 20 20 20 20 20 19 20 20 20 20 Most Carried 20 | 3 11 14 20 20 20 20 20 20 20 20 20 20 19 20 20 20 20 20 20 20 20 20 20 20 20 20 20 20 20 20 Average Carried 18 | 1 8 12 16 20 19 19 20 19 17 16 18 17 18 19 19 19 19 19 20 19 19 19 19 19 18 18 17 19 18 19 Final Capacity 20 | 8 15 15 20 20 20 20 20 20 20 20 20 20 20 20 20 20 20 20 20 20 20 20 20 20 20 20 20 20 20 20 Final Carried 20 | 2 11 14 20 20 20 20 20 18 20 16 16 20 18 20 20 19 20 20 20 20 20 20 20 20 19 19 20 20 20 14 Class Distribution -------------------- 58% | Scavenger-Mutant 33% | Mutant 7% | Hacker-Mutant Dominant Class ---------------- Mutant | -10/Materials Mutant | -10/Mines Mutant | -10/Exiles Mutant | -9/Mines Scavenger-Mutant | -8/Materials Scavenger-Mutant | -8/Garrison Scavenger-Mutant | -8/Materials Scavenger-Mutant | -8/Garrison Scavenger-Mutant | -7/Factory Scavenger-Mutant | -7/Garrison Scavenger-Mutant | -7/Factory Scavenger-Mutant | -7/Garrison Mutant | -6/Factory Mutant | -6/Waste Mutant | -6/Factory Scavenger-Mutant | -6/Garrison Scavenger-Mutant | -5/Factory Scavenger-Mutant | -5/Waste Scavenger-Mutant | -5/Factory Scavenger-Mutant | -5/Upper Caves Mutant | -5/Upper Caves Mutant | -5/Zhirov Mutant | -4/Proximity Caves Mutant | -4/Factory Hacker-Mutant | -4/Garrison Mutant | -3/Research Mutant | -2/Research Hacker-Mutant | -2/Testing Mutant | -1/Access Scavenger-Mutant | -1/Command Resources | -11 -10 -10 -10 -9 -8 -8 -8 -8 -7 -7 -7 -7 -6 -6 -6 -6 -5 -5 -5 -5 -5 -5 -4 -4 -4 -3 -2 -2 -1 -1 ----------- Run | Jun Mat Min Exi Min Mat Gar Mat Gar Fac Gar Fac Gar Fac Was Fac Gar Fac Was Fac Upp Upp Zhi Pro Fac Gar Res Res Tes Acc Com Matter Collected 14632 | 173 150 448 850 63 738 705 98 910 63 1211 50 509 . 315 125 517 192 148 . 1098 423 . 561 161 1873 158 360 807 67 1859 Remotely . | . . . . . . . . . . . . . . . . . . . . . . . . . . . . . . . Salvage Created 26637 | . 281 318 . 63 1040 637 127 815 63 853 89 971 21 . 385 1311 257 961 . 487 151 . 482 170 1503 877 3520 2641 527 8087 Parts 1020 | . 17 16 . 3 58 50 7 36 4 47 8 46 4 . 15 42 9 8 . 15 6 . 10 8 57 40 148 90 19 257 Haulers Intercepted 9 | . 1 . . . 2 . . . . . . . . . . . . . . . . . . . . 1 4 . 1 . Recyclers Shooed 3 | . . . . . . . . . . . . . . . . . . . . . . . . . . . 2 1 . . Parts Field Recycled . | . . . . . . . . . . . . . . . . . . . . . . . . . . . . . . . Retrieved Matter . | . . . . . . . . . . . . . . . . . . . . . . . . . . . . . . . Parts Self-Destructed 26 | . . . . . . . . . . . . . . . . . . . . 14 6 . 6 . . . . . . . Prevented . | . . . . . . . . . . . . . . . . . . . . . . . . . . . . . . . Kills | -11 -10 -10 -10 -9 -8 -8 -8 -8 -7 -7 -7 -7 -6 -6 -6 -6 -5 -5 -5 -5 -5 -5 -4 -4 -4 -3 -2 -2 -1 -1 ------- Run | Jun Mat Min Exi Min Mat Gar Mat Gar Fac Gar Fac Gar Fac Was Fac Gar Fac Was Fac Upp Upp Zhi Pro Fac Gar Res Res Tes Acc Com Combat Hostiles Destroyed 336 | . 9 3 . 4 16 19 2 22 1 25 3 27 . . 6 31 7 4 . 12 8 . 13 5 26 9 41 30 5 8 Melee 2 | . . . . . . . . . . . . 2 . . . . . . . . . . . . . . . . . . Guns 122 | . 4 . . 4 13 10 2 17 1 17 3 8 . . 3 13 . . . . . . . . . . . 23 4 . Cannons 136 | . . . . . 1 . . 1 . . . 12 . . 3 16 7 . . 12 8 . 4 5 23 7 29 2 . 6 AOE 48 | . 5 3 . . 2 9 . 3 . 8 . 5 . . . . . . . . . . 9 . 1 . 3 . . . Classes Destroyed 25 | . 4 2 . . 6 3 . 1 . . 1 2 . . . . . 1 . . . . . . . . 2 3 . . Worker 8 | . . 3 . . 2 . . . . . . . . . . . . . . . . . . . . . 2 . 1 . Builder 3 | . . . . . 1 . . . . . . . . . . . . . . . . . . . . 1 1 . . . Tunneler 1 | . . . . . 1 . . . . . . . . . . . . . . . . . . . . . . . . . Hauler 9 | . 1 . . . 2 . . . . . . . . . . . . . . . . . . . . 1 4 . 1 . Recycler 5 | . . 1 . . . . . . . . . . . . . . . . . . . . . . . . 2 1 . 1 Operator 5 | . 1 . . . 3 . . . . . . . 1 . . . . . . . . . . . . . . . . . Watcher 10 | . . . . . 3 . 1 . . . . . . . . 1 . . . . . . . . 2 1 1 1 . . Swarmer 77 | . 3 3 . 4 . 7 . 6 . 11 2 4 . . . 11 . . . 2 4 . 11 . . . 9 . . . Cutter 6 | . . . . . . 1 . . . 3 . 2 . . . . . . . . . . . . . . . . . . Saboteur 2 | . . . . . . . . . . . . . . . . . . . . . . . . . . . 1 1 . . Grunt 98 | . 6 . . . 9 3 . 11 . 6 . 10 . . 3 11 3 . . 6 1 . 1 3 10 2 9 4 . . Brawler 5 | . . . . . . . . 1 . . . . . . . 1 1 . . . . . . . . . 2 . . . Duelist 9 | . . . . . 1 . . 2 . 1 . . . . . . . . . 1 . . . . . . 2 2 . . Protector 2 | . . . . . . . . . . . . 1 . . . . . . . . . . . . . . 1 . . . Researcher 3 | . . . . . . . . . . . . . . . . . . . . . . . . . . . . 3 . . Sentry 43 | . . . . . 5 5 1 . 1 4 . 8 . . 3 2 1 . . 1 1 . 1 . 1 4 1 3 . 1 Demolisher 1 | . . . . . . . . . . . . 1 . . . . . . . . . . . . . . . . . . Specialist 9 | . . . . . . 2 . . . . . . . . . . . . . . . . . . 4 . . 3 . . Hunter 39 | . . . . . 1 . 1 . . . . . . . . 6 2 . . 1 2 . . 2 4 2 10 6 2 . Programmer 25 | . . . . . . . . . . . 1 1 . . . . . . . . . . . . 4 1 5 8 2 3 Heavy 2 | . . . . . . . . . . . . . . . . . . . . . . . . . . . 1 . 1 . Behemoth 7 | . . . . . . 1 . 2 . . . . . . . . . . . 1 . . . . 3 . . . . . Compactor 4 | . . . . . . . . . . . . . . . . . . 4 . . . . . . . . . . . . M Guard 2 | . . . . . . . . . . . . . . . . . . . . . . . . . . . . . . 2 Combat Programmer 1 | . . . . . . . . . . . . . . . . . . . . . . . . . . . . . . 1 Striker 2 | . . . . . . . . . . . . . . . . . . . . . . . . . . . . 2 . . Alpha 7 1 | . . . . . . . . . . . . . . . . . . . . . . . . . . . . 1 . . Packrat 3 | . . . . . . . . . . . . . . . . . . . . 3 . . . . . . . . . . Thug 1 | . . 1 . . . . . . . . . . . . . . . . . . . . . . . . . . . . Best Kill Streak 11 | . 3 6 . 4 5 9 1 6 1 8 2 11 1 . 3 6 3 1 . 4 4 . 5 2 4 3 10 6 3 2 Combat Bots Only 11 | . 3 3 . 4 2 9 1 6 1 8 2 11 . . 3 6 3 1 . 4 4 . 5 2 4 3 8 5 3 2 Max Kills in Single Turn 5 | . 3 4 . 1 3 3 1 2 1 3 2 4 1 . 1 2 1 1 . 1 2 . 5 1 3 1 5 1 1 1 Gunslinging 1 | . . . . . . . . . . . 1 . . . . . . . . . . . . . . . . . . . Exploded 5 | . 3 3 . . 2 3 . 2 . 3 . 3 . . . . . . . . . . 5 . 1 . 2 . . . Melee 1 | . . . . . . . . . . . . 1 . . . . . . . . . . . . . . . . . . Uniques/NPCs Destroyed 2 | . . 1 . . . . . . . . . . . . . . . . . . . . . . . . . . . 1 YI-UF0 (-10/Mines) MAIN.C Shell (-1/Command) Combat | -11 -10 -10 -10 -9 -8 -8 -8 -8 -7 -7 -7 -7 -6 -6 -6 -6 -5 -5 -5 -5 -5 -5 -4 -4 -4 -3 -2 -2 -1 -1 -------- Run | Jun Mat Min Exi Min Mat Gar Mat Gar Fac Gar Fac Gar Fac Was Fac Gar Fac Was Fac Upp Upp Zhi Pro Fac Gar Res Res Tes Acc Com Damage Taken 31241 | . 259 74 118 78 1487 1017 112 769 92 1945 164 2120 22 . 577 1821 465 12 . 1706 529 . 180 529 3345 1895 2177 3093 1201 5454 Core 2839 | . 40 13 43 8 168 128 21 32 11 292 14 269 3 . 27 85 25 . . 201 55 . . 77 238 112 117 184 63 613 Absorbed by Shields 4742 | . . . . . . . . 109 . 65 . . 22 . . . . . . . . . . . . 395 1739 . 928 1484 Reduced by Siege Mode 1123 | . . . . . . . . . . . . . . . . . . . . 148 70 . . 27 360 . 201 158 3 156 Redirected to Shielding 50 | . . . . . 23 12 . . . 15 . . . . . . . . . . . . . . . . . . . . Regen/Repaired (Parts) 3884 | . . . . . 108 . 140 . . . . . . . . . . . . . . . . . . 453 . 1250 302 1631 Core Remaining (%) 65 | 100 . . . 58 . . . 36 . . . 16 . . . 86 . . . . . . 71 . 72 82 . 79 . 57 Volleys Fired 1740 | . 31 17 1 6 106 60 25 92 4 84 5 82 3 . 21 90 20 8 . 59 29 . 19 16 118 35 153 161 57 438 Largest 2 | . 2 2 2 2 2 2 2 2 2 2 2 2 2 . 2 2 1 1 . 1 1 . 1 1 2 2 2 2 1 2 Hottest 250 | . 80 40 40 40 130 50 106 106 50 225 103 126 140 . 170 178 83 250 . 83 83 . 83 83 250 226 250 250 200 250 Shots Fired 2275 | . 55 32 2 12 196 108 36 141 8 145 10 140 5 . 42 143 20 8 . 59 29 . 19 16 149 69 168 165 57 441 Gun 1113 | . 48 30 2 12 187 102 36 134 8 137 10 99 2 . 21 53 . . . . . . . . . . . 122 56 54 Cannon 1091 | . . . . . . . . 4 . . . 41 3 . 21 90 20 8 . 59 29 . 16 16 149 69 163 36 1 366 Launcher 46 | . 7 2 . . 3 6 . 3 . 8 . . . . . . . . . . . . 3 . . . . . . 14 Special 25 | . . . . . 6 . . . . . . . . . . . . . . . . . . . . . 5 7 . 7 Kinetic 884 | . . 30 2 12 99 102 13 59 8 119 5 98 2 . 12 36 20 . . 59 29 . 16 16 78 . . 9 . 60 Thermal 1333 | . 48 . . . 94 . 23 79 . 18 5 42 3 . 30 107 . 8 . . . . . . 71 69 163 149 57 367 Explosive 46 | . 7 2 . . 3 6 . 3 . 8 . . . . . . . . . . . . 3 . . . . . . 14 Electromagnetic . | . . . . . . . . . . . . . . . . . . . . . . . . . . . . . . . Robot Hit Streak 41 | . 9 8 . 6 15 28 16 14 21 19 8 30 31 . 14 17 13 40 . 13 11 . 14 16 31 16 24 27 16 41 Robot Miss Streak 6 | . 6 3 2 3 6 4 3 2 . 2 6 3 1 . 3 2 2 1 . 2 3 . 2 1 2 4 4 2 2 2 Penetration Max 1 | . . . . . . . . . . . . . . . . . . . . 1 1 . . . . . . . . . Secondary Targets 12 | . 1 . . . . 1 . 5 . 2 1 1 . . . . . . . . . . . . . . . 1 . . Max Gunslinging Chain 1 | . 1 . . . . 1 . 1 . 1 1 1 . . . . . . . . . . . . . . . 1 . . Capacitor 581 | . . . . . . . . . . . . . . . . . . . . . . . . . . . 132 134 57 258 Shots Hit Robots 1537 | . 32 23 . 8 122 80 13 71 7 89 8 96 1 . 33 84 18 8 . 44 22 . 15 15 102 43 122 139 41 301 Core Hits 963 | . 24 17 . 4 55 35 6 41 3 58 11 49 2 . 12 41 6 7 . 13 7 . 17 6 45 21 91 82 10 300 Critical Kills 15 | . . . . . . 1 . 1 . 1 . . . . . 3 . . . . . . . . 1 1 3 2 . 2 Critical Parts Destroyed 5 | . . . . . . . . . . . . 1 . . . . . . . . . . . . . . . . . 4 Critical Strikes 73 | . . . . . 2 1 . 4 . 1 . 4 . . . 9 3 . . 12 7 . 3 3 10 1 3 2 . 8 Burn 6 | . . . . . 2 . . 3 . . . . . . . 1 . . . . . . . . . . . . . . Meltdown 11 | . . . . . . . . 1 . . . . . . . 1 . . . . . . . . 1 1 3 2 . 2 Destroy 9 | . . . . . . 1 . . . 1 . 1 . . . 2 . . . . . . . . . . . . . 4 Blast 46 | . . . . . . . . . . . . 3 . . . 5 3 . . 12 7 . 3 3 9 . . . . 1 Sever 1 | . . . . . . . . . . . . . . . . . . . . . . . . . . . . . . 1 Melee Attacks 41 | . . . . . . 41 . . . . . . . . . . . . . . . . . . . . . . . . Impact . | . . . . . . . . . . . . . . . . . . . . . . . . . . . . . . . Slashing 41 | . . . . . . 41 . . . . . . . . . . . . . . . . . . . . . . . . Piercing . | . . . . . . . . . . . . . . . . . . . . . . . . . . . . . . . Sneak Attacks . | . . . . . . . . . . . . . . . . . . . . . . . . . . . . . . . Combat Hostiles . | . . . . . . . . . . . . . . . . . . . . . . . . . . . . . . . Follow-up Attacks . | . . . . . . . . . . . . . . . . . . . . . . . . . . . . . . . Damage Inflicted 95061 | . 867 623 . 107 2175 1912 256 2709 124 2433 171 3294 99 . 954 3580 1208 812 . 3611 1746 . 1926 974 7001 1935 6089 5768 2170 42517 Guns 17069 | . 331 297 . 107 1801 1369 256 1370 124 1465 171 1375 . . 437 905 . . . . . . . . . . . 4072 1771 1218 Cannons 43421 | . . . . . . . . 558 . . . 1213 35 . 517 2675 1208 337 . 3611 1746 . 1097 974 6543 1808 5277 1196 186 14440 Explosions 33437 | . 535 288 . . 291 543 . 781 . 968 . 704 64 . . . . 475 . . . . 829 . 458 . 770 486 209 26036 Melee . | . . . . . . . . . . . . . . . . . . . . . . . . . . . . . . . Ramming 983 | . 1 38 . . 31 . . . . . . 2 . . . . . . . . . . . . . 127 42 14 4 724 Kinetic 23895 | . . 297 . 107 1079 1369 88 758 124 1410 71 1534 . . 225 1781 1208 . . 3611 1746 . 1097 974 4473 . . 301 . 1642 Thermal 56627 | . 331 . . . 774 . 168 1629 . 55 100 1758 35 . 729 1799 . 812 . . . . . . 2528 1808 6047 5453 2166 30435 Explosive 13480 | . 523 288 . . 291 543 . 322 . 968 . . . . . . . . . . . . 829 . . . . . . 9716 Electromagnetic 76 | . 12 . . . . . . . . . . . 64 . . . . . . . . . . . . . . . . . Impact . | . . . . . . . . . . . . . . . . . . . . . . . . . . . . . . . Slashing . | . . . . . . . . . . . . . . . . . . . . . . . . . . . . . . . Piercing . | . . . . . . . . . . . . . . . . . . . . . . . . . . . . . . . Highest Corruption 27 | . . . . . 4 . . . . . . 2 1 1 1 . 3 27 27 27 27 27 27 1 4 1 2 10 1 21 Average Corruption 10 | . . . . . 3 . . . . . . 1 1 1 1 . 1 15 27 27 27 27 27 1 3 1 1 6 1 10 Corruption Purged 26 | . . . . . 4 . . . . . . . . . 1 . . . . . . . . . . . . . . 21 Corruption Blocked . | . . . . . . . . . . . . . . . . . . . . . . . . . . . . . . . Effects 314 | . . . . . 12 . . . . . . 3 . 4 2 . . 9 6 41 50 10 25 1 52 2 1 44 1 51 Message Errors 72 | . . . . . 2 . . . . . . 1 . . 1 . . 2 2 9 8 1 6 . 11 1 . 11 1 16 Matter Fused 82 | . . . . . 3 . . . . . . . . 2 1 . . 1 2 9 14 3 8 . 20 . 1 11 . 7 Heat Flow Errors 34 | . . . . . 2 . . . . . . 2 . 1 . . . . 1 9 6 . 3 . 3 . . 2 . 5 Energy Discharges 28 | . . . . . 2 . . . . . . . . . . . . 3 . 4 8 2 1 . 1 . . 6 . 1 Parts Rejected 8 | . . . . . . . . . . . . . . . . . . . . 1 1 . . . 2 . . 2 . 2 Parts Fused 1 | . . . . . . . . . . . . . . . . . . . . . . . 1 . . . . . . . Data Loss (minor) 39 | . . . . . 2 . . . . . . . . . . . . 1 1 4 4 1 2 1 5 1 . 8 . 9 Data Loss (major) 17 | . . . . . . . . . . . . . . . . . . 1 . 1 6 3 2 . 2 . . 1 . 1 Misfires 11 | . . . . . . . . . . . . . . . . . . . . 2 1 . 1 . 4 . . . . 3 Alerts 6 | . . . . . . . . . . . . . . 1 . . . 1 . . 1 . . . 2 . . . . 1 Weapon Failures 16 | . . . . . 1 . . . . . . . . . . . . . . 2 1 . 1 . 2 . . 3 . 6 Overload Shots 7 | . . . . . . . . . . 1 . . . . . . . . . . . . . . . . . . . 6 Overflow Damage 4977 | . 35 20 . . . 8 . . . 14 . 29 . . 34 33 196 . . 435 270 . 312 52 583 149 145 41 50 2571 Projectiles 3354 | . . . . . . . . . . . . 29 . . 34 33 196 . . 435 270 . 312 52 583 100 145 34 21 1110 Explosions 1570 | . 35 20 . . . 8 . . . 14 . . . . . . . . . . . . . . . . . 7 29 1457 Melee 53 | . . . . . . . . . . . . . . . . . . . . . . . . . . 49 . . . 4 Knockbacks 90 | . . 1 . . . . . . . . . 4 . . . 5 11 . . 10 6 . 5 9 22 . . . . 17 Impact 13 | . . 1 . . . . . . . . . . . . . . . . . . . . . . . . . . . 12 Kinetic 70 | . . . . . . . . . . . . 4 . . . 4 8 . . 9 6 . 4 8 22 . . . . 5 Secondary 7 | . . . . . . . . . . . . . . . . 1 3 . . 1 . . 1 1 . . . . . . Self-Inflicted Damage 427 | . . . . . . . . 18 . 152 . . 50 . . . . 12 . . . . . . 2 . 60 86 . 47 Shots 23 | . . . . . . . . 1 . 5 . . 2 . . . . 1 . . . . . . 1 . 6 6 . 1 Rammed 89 | . 1 9 . . 1 . . . . . . . . . . . . . . . . . . . . 2 1 1 1 73 Targets Rammed 94 | . 1 9 . . 2 . . . . . . 2 . . . . . . . . . . . . . 3 2 1 1 73 Kicked . | . . . . . . . . . . . . . . . . . . . . . . . . . . . . . . . Crushed 5 | . . . . . 1 . . . . . . 2 . . . . . . . . . . . . . 1 1 . . . Highest Temperature 488 | . 270 . . . 309 9 220 268 12 112 . 256 196 215 315 156 . 108 179 213 231 . 205 16 396 488 384 354 199 437 Average Temperature 92 | . 88 . . . 116 4 97 83 9 27 . 47 89 110 112 47 . 49 98 81 105 . 76 8 102 169 129 67 90 93 Received Heat Transfer 4849 | . 114 . . . 630 111 . 210 36 488 . 528 . . 174 330 45 . . 459 72 . . 63 463 428 73 252 . 373 Effects 19 | . 1 . . . 1 . . . . . . . . . 1 . . . . . . . . . 4 5 3 2 . 2 Shutdowns 9 | . . . . . . . . . . . . . . . . . . . . . . . . . 1 4 1 1 . 2 Energy Bleed 4 | . 1 . . . . . . . . . . . . . 1 . . . . . . . . . 1 . 1 . . . Interference 4 | . . . . . 1 . . . . . . . . . . . . . . . . . . . 2 . . 1 . . Matter Decay 1 | . . . . . . . . . . . . . . . . . . . . . . . . . . 1 . . . . Short Circuit 1 | . . . . . . . . . . . . . . . . . . . . . . . . . . . 1 . . . Siege Activations 35 | . . . . . . . . . . . . . . . . . . . . 5 3 . . 3 9 1 6 5 1 2 Total Turns 1043 | . . . . . . . . . . . . . . . . . . . . 179 53 . . 36 411 54 64 98 5 143 Longest Duration 212 | . . . . . . . . . . . . . . . . . . . . 83 24 . . 21 212 54 17 39 5 132 Robots Corrupted . | . . . . . . . . . . . . . . . . . . . . . . . . . . . . . . . Combat Hostiles . | . . . . . . . . . . . . . . . . . . . . . . . . . . . . . . . Parts Fried 3 | . . . . . . . . . . . . . 1 . . . . . . . . . . . . . . . . 2 Impact Corruptions 8 | . . . . . . . . . . . . . . . . . 4 . . . . . . . . 2 . . . 2 Robots Melted 33 | . . . . . . . . 1 . . . . . . . 2 . 4 . . . . . . 3 2 9 7 1 4 Combat Hostiles 31 | . . . . . . . . 1 . . . . . . . 2 . 4 . . . . . . 3 2 9 5 1 4 Parts Melted 187 | . . . . . 4 . 1 1 . . 1 4 . . 1 14 . 15 . . . . . . 18 7 44 39 12 26 Heat Transferred 60933 | . 725 . . . 2321 . 259 1867 . 111 148 2106 37 . 953 2806 . 3520 . . . . . . 3918 1665 8902 7929 1736 21930 Parts Sabotaged . | . . . . . . . . . . . . . . . . . . . . . . . . . . . . . . . Parts Stolen . | . . . . . . . . . . . . . . . . . . . . . . . . . . . . . . . Parts Stripped . | . . . . . . . . . . . . . . . . . . . . . . . . . . . . . . . Power Chain Reactions . | . . . . . . . . . . . . . . . . . . . . . . . . . . . . . . . Missiles Intercepted 4 | . . . . . . . . . . . . . . . . . . . . . . . . . . . . . . 4 Alert | -11 -10 -10 -10 -9 -8 -8 -8 -8 -7 -7 -7 -7 -6 -6 -6 -6 -5 -5 -5 -5 -5 -5 -4 -4 -4 -3 -2 -2 -1 -1 ------- Run | Jun Mat Min Exi Min Mat Gar Mat Gar Fac Gar Fac Gar Fac Was Fac Gar Fac Was Fac Upp Upp Zhi Pro Fac Gar Res Res Tes Acc Com Peak Influence 1672 | . 207 168 . 90 258 923 570 908 511 1113 649 1429 821 287 279 1245 817 243 170 . . . . 165 1672 1494 1618 1002 991 810 Initial 940 | . . 61 . . 35 107 449 26 466 105 583 454 749 287 60 55 653 243 170 . . . . 59 115 940 828 702 550 563 Average 567 | . 96 58 . 7 92 467 248 448 383 678 620 1021 781 252 136 750 679 243 170 . . . . 118 748 1328 1065 799 778 671 Maximum Alert Level 5 | . 1 . . . 1 3 2 3 2 4 2 4 3 1 1 4 3 1 . . . . . . 5 4 5 3 3 3 Low Security (%) 37 | 100 84 100 . 100 97 29 40 18 5 4 . . . 16 84 5 . . 100 . . . . 100 4 . . . . 86 Level 1 12 | . 15 . . . 2 1 39 37 61 7 . . . 83 15 7 . 100 . . . . . . 26 . . . . . Level 2 18 | . . . . . . 50 19 18 32 40 100 23 . . . 31 69 . . . . . . . 15 . . 12 31 8 Level 3 22 | . . . . . . 18 . 26 . 38 . 31 100 . . 34 30 . . . . . . . 30 21 69 87 68 5 Level 4 8 | . . . . . . . . . . 9 . 44 . . . 21 . . . . . . . . 19 78 29 . . . Level 5 . | . . . . . . . . . . . . . . . . . . . . . . . . . 3 . 1 . . . High Security . | . . . . . . . . . . . . . . . . . . . . . . . . . . . . . . . Max Security . | . . . . . . . . . . . . . . . . . . . . . . . . . . . . . . . Squads Dispatched 35 | . . . . . 2 . 2 . . . . . 1 . 1 . 2 . . . . . . 2 . 6 8 8 2 1 Investigation 8 | . . . . . . . 2 . . . . . 1 . 1 . 1 . . . . . . 2 . . . 1 . . Extermination 8 | . . . . . . . . . . . . . . . . . 1 . . . . . . . . . 2 3 1 1 Reinforcement 12 | . . . . . 2 . . . . . . . . . . . . . . . . . . . . 3 4 2 1 . Assault 7 | . . . . . . . . . . . . . . . . . . . . . . . . . . 3 2 2 . . Garrison . | . . . . . . . . . . . . . . . . . . . . . . . . . . . . . . . Intercept . | . . . . . . . . . . . . . . . . . . . . . . . . . . . . . . . Searches Triggered . | . . . . . . . . . . . . . . . . . . . . . . . . . . . . . . . Construction Impeded 1 | . . . . . . . . . . . . . . . . . . . . . . . . . . 1 . . . . Haulers Reinforced 4 | . . . . . . . . . . . . . . . . . . . . . . . . . . . 2 1 1 . Active Scanning Responses . | . . . . . . . . . . . . . . . . . . . . . . . . . . . . . . . Cargo Convoy Interrupts . | . . . . . . . . . . . . . . . . . . . . . . . . . . . . . . . Stealth | -11 -10 -10 -10 -9 -8 -8 -8 -8 -7 -7 -7 -7 -6 -6 -6 -6 -5 -5 -5 -5 -5 -5 -4 -4 -4 -3 -2 -2 -1 -1 --------- Run | Jun Mat Min Exi Min Mat Gar Mat Gar Fac Gar Fac Gar Fac Was Fac Gar Fac Was Fac Upp Upp Zhi Pro Fac Gar Res Res Tes Acc Com Distress Signals 6 | . 1 . . . 1 . . . . . . . . . . . . . . . . . . . . 3 . 1 . . Communications Jammed 82 | . . . . . . . . . . . . . . . . . . . . . . . . . 26 53 . . 3 . Distress Signals 78 | . . . . . . . . . . . . . . . . . . . . . . . . . 26 52 . . . . Times Spotted 452 | . 16 5 1 4 32 22 6 22 1 33 4 30 1 . 6 37 12 5 . 15 7 . 10 4 26 39 47 38 18 11 Peak Tracking Total 11 | . 5 3 2 4 4 6 3 6 1 6 3 6 1 . 3 5 5 3 . 5 4 . 5 2 4 11 8 6 5 4 Tactical Retreats 20 | . . . . . . 2 . . . 1 . . . . . 1 1 1 . 3 . . . . 2 1 . . 1 7 Traps | -11 -10 -10 -10 -9 -8 -8 -8 -8 -7 -7 -7 -7 -6 -6 -6 -6 -5 -5 -5 -5 -5 -5 -4 -4 -4 -3 -2 -2 -1 -1 ------- Run | Jun Mat Min Exi Min Mat Gar Mat Gar Fac Gar Fac Gar Fac Was Fac Gar Fac Was Fac Upp Upp Zhi Pro Fac Gar Res Res Tes Acc Com Traps Triggered 47 | . . . . . . 4 . 4 . 10 . 10 1 . . 6 2 . . . . . . 1 1 1 . 1 1 5 Indirectly . | . . . . . . . . . . . . . . . . . . . . . . . . . . . . . . . Trap Hack Attempts . | . . . . . . . . . . . . . . . . . . . . . . . . . . . . . . . Triggered . | . . . . . . . . . . . . . . . . . . . . . . . . . . . . . . . Disarmed . | . . . . . . . . . . . . . . . . . . . . . . . . . . . . . . . Reprogrammed . | . . . . . . . . . . . . . . . . . . . . . . . . . . . . . . . Reused . | . . . . . . . . . . . . . . . . . . . . . . . . . . . . . . . Traps Extracted . | . . . . . . . . . . . . . . . . . . . . . . . . . . . . . . . Installed . | . . . . . . . . . . . . . . . . . . . . . . . . . . . . . . . Triggered 4 | . . . . . . . . . . . . . . . . . . . . 1 1 . . . . . . . . 2 Most Traps Carried 3 | . . . . . . . . . . . . 3 3 3 2 2 . . . . . . . . . . . . . . Machines | -11 -10 -10 -10 -9 -8 -8 -8 -8 -7 -7 -7 -7 -6 -6 -6 -6 -5 -5 -5 -5 -5 -5 -4 -4 -4 -3 -2 -2 -1 -1 ---------- Run | Jun Mat Min Exi Min Mat Gar Mat Gar Fac Gar Fac Gar Fac Was Fac Gar Fac Was Fac Upp Upp Zhi Pro Fac Gar Res Res Tes Acc Com Machines Disabled 53 | . 5 1 . . . 4 . 4 . 3 . 7 3 . . 2 1 . . . . . . . 6 2 1 8 2 4 Max in Single Turn 3 | . 2 . . . . 1 . 1 . 1 . 1 3 . . 1 . . . . . . . . 1 . 1 1 1 1 Garrison Access 1 | . . . . . . . . . . . . . . . . . . . . . . . . . . . . 1 . . Garrison Relay 16 | . . . . . . 3 . 4 . 2 . 2 . . . 2 . . . . . . . . 3 . . . . . Machines Repaired . | . . . . . . . . . . . . . . . . . . . . . . . . . . . . . . . Machines Sabotaged . | . . . . . . . . . . . . . . . . . . . . . . . . . . . . . . . Overloaded Fab Kills . | . . . . . . . . . . . . . . . . . . . . . . . . . . . . . . . Hacking | -11 -10 -10 -10 -9 -8 -8 -8 -8 -7 -7 -7 -7 -6 -6 -6 -6 -5 -5 -5 -5 -5 -5 -4 -4 -4 -3 -2 -2 -1 -1 --------- Run | Jun Mat Min Exi Min Mat Gar Mat Gar Fac Gar Fac Gar Fac Was Fac Gar Fac Was Fac Upp Upp Zhi Pro Fac Gar Res Res Tes Acc Com Machines Accessed 62 | . 2 . 2 . 6 3 6 1 3 3 2 3 3 . 3 2 3 . . 1 1 4 1 3 3 1 1 4 . 1 Terminals 38 | . 2 . . . 4 3 2 1 2 3 1 3 3 . . 2 2 . . . . . 1 1 3 . 1 3 . 1 Fabricators 1 | . . . . . . . . . . . . . . . . . . . . . . . . 1 . . . . . . Repair Stations 5 | . . . . . 1 . 1 . . . . . . . 2 . . . . . . . . . . 1 . . . . Recycling Units 2 | . . . . . . . 2 . . . . . . . . . . . . . . . . . . . . . . . Scanalyzers 1 | . . . . . . . . . . . . . . . . . 1 . . . . . . . . . . . . . Garrison Access 7 | . . . . . 1 . 1 . 1 . 1 . . . 1 . . . . . . . . 1 . . . 1 . . Total Hacks 140 | . 8 . 2 . 13 4 14 1 6 8 3 5 11 . 6 6 8 . . 1 1 17 1 7 5 2 1 9 . 1 Successful 84 | . 5 . 2 . 8 2 9 1 2 2 2 3 3 . 3 2 5 . . 1 1 17 1 3 2 2 1 7 . . Failed 55 | . 2 . . . 5 2 5 . 4 6 1 2 8 . 3 4 3 . . . . . . 4 3 . . 2 . 1 Catastrophic 11 | . 1 . . . 1 1 . . 1 . . . 1 . 1 1 . . . . . . . 2 1 . . . . 1 Database Lockouts 1 | . 1 . . . . . . . . . . . . . . . . . . . . . . . . . . . . . Manual 31 | . 9 . 1 . 6 . 5 . . . . . 6 . . . . . . . . . . . . . . 4 . . Terminals 88 | . 8 . . . 10 4 5 1 5 8 2 5 11 . . 6 5 . . . . . 1 2 5 . 1 8 . 1 Fabricators 4 | . . . . . . . . . . . . . . . . . . . . . . . . 4 . . . . . . Repair Stations 14 | . . . . . 2 . 5 . . . . . . . 5 . . . . . . . . . . 2 . . . . Recycling Units 3 | . . . . . . . 3 . . . . . . . . . . . . . . . . . . . . . . . Scanalyzers 3 | . . . . . . . . . . . . . . . . . 3 . . . . . . . . . . . . . Garrison Access 7 | . . . . . 1 . 1 . 1 . 1 . . . 1 . . . . . . . . 1 . . . 1 . . Terminal Hacks 56 | . 2 . 2 . 3 2 2 1 1 2 1 3 3 . . 2 3 . . 1 1 17 1 . 2 . 1 6 . . Record 7 | . . . 1 . . . . . . . . . . . . . . . . . . 5 1 . . . . . . . Part Schematic 6 | . . . . . . . . . . . . . 1 . . . 1 . . . . 4 . . . . . . . . Robot Analysis 7 | . 2 . . . . . 1 . . . . . . . . . . . . . . 4 . . . . . . . . Prototype ID Bank 5 | . . . . . 1 . . . . . . . . . . . . . . . . 4 . . . . . . . . Open Door 4 | . . . . . . . . . . . . 1 . . . . . . . 1 1 . . . . . . 1 . . Level Access Points 1 | . . . . . . . . . . . 1 . . . . . . . . . . . . . . . . . . . Emergency Access Points 6 | . . . . . . 1 . 1 . 1 . 1 . . . 1 . . . . . . . . 1 . . . . . Machine Index 1 | . . . . . . . . . . . . . . . . . 1 . . . . . . . . . . . . . Terminal Index 2 | . . . . . 1 . . . . . . . 1 . . . . . . . . . . . . . . . . . Unreport Threat 3 | . . . . . 1 . . . 1 . . . . . . . . . . . . . . . . . . 1 . . Transport Status 1 | . . . . . . . . . . . . . . . . . . . . . . . . . . . . 1 . . Hauler Manifests 3 | . . . . . . . 1 . . . . . . . . . 1 . . . . . . . . . . 1 . . Zone Layout 2 | . . . . . . . . . . . . . 1 . . . . . . . . . . . . . 1 . . . Garrison Registry 2 | . . . . . . . . . . . . 1 . . . . . . . . . . . . 1 . . . . . Patrol Navigation 1 | . . . . . . . . . . . . . . . . 1 . . . . . . . . . . . . . . Security Stations 2 | . . . . . . 1 . . . 1 . . . . . . . . . . . . . . . . . . . . EX-Prototype ID Bank 1 | . . . 1 . . . . . . . . . . . . . . . . . . . . . . . . . . . Protovariant Controls 2 | . . . . . . . . . . . . . . . . . . . . . . . . . . . . 2 . . Fabricator Hacks 2 | . . . . . . . . . . . . . . . . . . . . . . . . 2 . . . . . . Load Schematic 1 | . . . . . . . . . . . . . . . . . . . . . . . . 1 . . . . . . Build 1 | . . . . . . . . . . . . . . . . . . . . . . . . 1 . . . . . . Repair Station Hacks 10 | . . . . . 2 . 4 . . . . . . . 2 . . . . . . . . . . 2 . . . . Scan Component 6 | . . . . . 1 . 2 . . . . . . . 2 . . . . . . . . . . 1 . . . . Repair 4 | . . . . . 1 . 2 . . . . . . . . . . . . . . . . . . 1 . . . . Recycling Unit Hacks . | . . . . . . . . . . . . . . . . . . . . . . . . . . . . . . . Scanalyzer 2 | . . . . . . . . . . . . . . . . . 2 . . . . . . . . . . . . . Insert Component 1 | . . . . . . . . . . . . . . . . . 1 . . . . . . . . . . . . . Analyze 1 | . . . . . . . . . . . . . . . . . 1 . . . . . . . . . . . . . Garrison Access Hacks 7 | . . . . . 1 . 1 . 1 . 1 . . . 1 . . . . . . . . 1 . . . 1 . . Unlock Access 6 | . . . . . 1 . 1 . 1 . 1 . . . 1 . . . . . . . . 1 . . . . . . Seal Access 1 | . . . . . . . . . . . . . . . . . . . . . . . . . . . . 1 . . Unauthorized Hacks 7 | . 3 . . . 2 . 2 . . . . . . . . . . . . . . . . . . . . . . . Terminals 5 | . 3 . . . 2 . . . . . . . . . . . . . . . . . . . . . . . . . Botnet 3 | . 2 . . . 1 . . . . . . . . . . . . . . . . . . . . . . . . . Operators 2 | . 1 . . . 1 . . . . . . . . . . . . . . . . . . . . . . . . . Fabricators . | . . . . . . . . . . . . . . . . . . . . . . . . . . . . . . . Repair Stations . | . . . . . . . . . . . . . . . . . . . . . . . . . . . . . . . Recycling Units 2 | . . . . . . . 2 . . . . . . . . . . . . . . . . . . . . . . . Tunnel 2 | . . . . . . . 2 . . . . . . . . . . . . . . . . . . . . . . . Scanalyzers . | . . . . . . . . . . . . . . . . . . . . . . . . . . . . . . . Garrison Access . | . . . . . . . . . . . . . . . . . . . . . . . . . . . . . . . Data Cores Recovered 1 | . . . . . 1 . . . . . . . . . . . . . . . . . . . . . . . . . Used . | . . . . . . . . . . . . . . . . . . . . . . . . . . . . . . . Hacking Detections 45 | . 2 . . . 6 3 3 1 2 3 2 3 3 . 2 2 3 . . . . . . 2 3 1 1 2 . 1 Full Trace Events 12 | . 1 . . . 1 . . . . 1 . 1 1 . 1 2 1 . . . . . . 2 1 . . . . . Feedback Events . | . . . . . . . . . . . . . . . . . . . . . . . . . . . . . . . Feedback Blocked . | . . . . . . . . . . . . . . . . . . . . . . . . . . . . . . . Robot Schematics Acquired 5 | . . . . . . . . . . . . . . . . . . . . . . . . . . . . 5 . . Robots Built . | . . . . . . . . . . . . . . . . . . . . . . . . . . . . . . . Authchips . | . . . . . . . . . . . . . . . . . . . . . . . . . . . . . . . Time . | . . . . . . . . . . . . . . . . . . . . . . . . . . . . . . . Total Robot Build Rating . | . . . . . . . . . . . . . . . . . . . . . . . . . . . . . . . Part Schematics Acquired 17 | . . . . . . . . . . . . . 1 . . . 1 . . . . 4 . . . . . 11 . . Parts Built 2 | . . . . . . . . . . . . . . . . . . . . . . . . 2 . . . . . . Authchips . | . . . . . . . . . . . . . . . . . . . . . . . . . . . . . . . Time 64 | . . . . . . . . . . . . . . . . . . . . . . . . 64 . . . . . . Total Part Build Rating 16 | . . . . . . . . . . . . . . . . . . . . . . . . 16 . . . . . . Parts Repaired 4 | . . . . . 1 . 2 . . . . . . . . . . . . . . . . . . 1 . . . . Time 127 | . . . . . 26 . 88 . . . . . . . . . . . . . . . . . . 13 . . . . Parts Recycled . | . . . . . . . . . . . . . . . . . . . . . . . . . . . . . . . Recycled Matter . | . . . . . . . . . . . . . . . . . . . . . . . . . . . . . . . Retrieved Matter . | . . . . . . . . . . . . . . . . . . . . . . . . . . . . . . . Retrieved Components . | . . . . . . . . . . . . . . . . . . . . . . . . . . . . . . . Parts Scanalyzed 1 | . . . . . . . . . . . . . . . . . 1 . . . . . . . . . . . . . Part Schematics Acquired . | . . . . . . . . . . . . . . . . . . . . . . . . . . . . . . . Parts Damaged . | . . . . . . . . . . . . . . . . . . . . . . . . . . . . . . . Bothacking | -11 -10 -10 -10 -9 -8 -8 -8 -8 -7 -7 -7 -7 -6 -6 -6 -6 -5 -5 -5 -5 -5 -5 -4 -4 -4 -3 -2 -2 -1 -1 ------------ Run | Jun Mat Min Exi Min Mat Gar Mat Gar Fac Gar Fac Gar Fac Was Fac Gar Fac Was Fac Upp Upp Zhi Pro Fac Gar Res Res Tes Acc Com Used RIF Installer 8 | . . . . . . 1 . 2 . 1 . 1 . . . 1 . . . . . . . . 2 . . . . . Coupler Efficiency 1 | . . . . . . . . . . . . . . . . 1 . . . . . . . . . . . . . . Hotswap 1 | . . . . . . . . 1 . . . . . . . . . . . . . . . . . . . . . . Zone Cloak 1 | . . . . . . . . . . . . . . . . . . . . . . . . . 1 . . . . . Watcher Feeds 1 | . . . . . . . . 1 . . . . . . . . . . . . . . . . . . . . . . Autooverride 2 | . . . . . . . . . . . . 1 . . . . . . . . . . . . 1 . . . . . Autoassimilate 1 | . . . . . . . . . . 1 . . . . . . . . . . . . . . . . . . . . Robots Hacked 7 | . . . . . . . . . . . . . . . . . . . . 1 . . . . . . 1 5 . . Non-combat 3 | . . . . . . . . . . . . . . . . . . . . . . . . . . . 1 2 . . Combat 4 | . . . . . . . . . . . . . . . . . . . . 1 . . . . . . . 3 . . Autooverrided 1 | . . . . . . . . . . . . . . . . . . . . 1 . . . . . . . . . . Robot Hacks Applied 12 | . . . . . . . . . . . . . . . . . . . . . . . . . . . 5 7 . . drop_inventory 1 | . . . . . . . . . . . . . . . . . . . . . . . . . . . . 1 . . purge_threat 5 | . . . . . . . . . . . . . . . . . . . . . . . . . . . 5 . . . block_reporting 1 | . . . . . . . . . . . . . . . . . . . . . . . . . . . . 1 . . locate_prototypes 2 | . . . . . . . . . . . . . . . . . . . . . . . . . . . . 2 . . streamctrl_low 2 | . . . . . . . . . . . . . . . . . . . . . . . . . . . . 2 . . formatsys_low 1 | . . . . . . . . . . . . . . . . . . . . . . . . . . . . 1 . . Relay Couplers Released 70 | . . . . . . 12 . 17 . 9 . 9 . . . 7 . . . . . . . . 14 . . 2 . . Machine Destruction 70 | . . . . . . 12 . 17 . 9 . 9 . . . 7 . . . . . . . . 14 . . 2 . . Attached 4 | . . . . . . . . . 1 . . . . . . 1 . . . 1 . . . . . 1 . . . . Fabnet Peak Effective % . | . . . . . . . . . . . . . . . . . . . . . . . . . . . . . . . Robots Rewired 7 | . . . . . . . . . . 3 . 2 . . . . . . . . . . . . 2 . . . . . Allies Hacked . | . . . . . . . . . . . . . . . . . . . . . . . . . . . . . . . Hacks Repelled . | . . . . . . . . . . . . . . . . . . . . . . . . . . . . . . . Allies | -11 -10 -10 -10 -9 -8 -8 -8 -8 -7 -7 -7 -7 -6 -6 -6 -6 -5 -5 -5 -5 -5 -5 -4 -4 -4 -3 -2 -2 -1 -1 -------- Run | Jun Mat Min Exi Min Mat Gar Mat Gar Fac Gar Fac Gar Fac Was Fac Gar Fac Was Fac Upp Upp Zhi Pro Fac Gar Res Res Tes Acc Com Total Allies 25 | . . 4 . . . . . . . 5 . 2 . . . 2 . . . 1 . . . . 2 . . 3 3 3 Largest Group 3 | . . 3 1 . . . . . . 3 . 2 . . . 2 1 . . 1 . . . . 2 2 . 1 3 3 Highest-Rated Group 374 | . . 47 16 . . . . . . 175 . 51 . . . 157 95 . . 29 . . . . 296 296 . 62 374 372 Highest-Rated Ally 148 | . . 31 16 . . . . . . 95 . 31 . . . 95 95 . . 29 . . . . 148 148 . 62 131 131 Total Orders 3 | . . . . . . . . . . . . . . . . . . . . . . . . . 2 1 . . . . STAY 1 | . . . . . . . . . . . . . . . . . . . . . . . . . 1 . . . . . ROAM 1 | . . . . . . . . . . . . . . . . . . . . . . . . . . 1 . . . . FOLLOW 1 | . . . . . . . . . . . . . . . . . . . . . . . . . 1 . . . . . Ally Attacks 197 | . . 10 2 . . . . . . 43 . 30 . . . 15 12 . . 3 . . . . . 59 . . 21 2 Total Damage 5955 | . . 271 2 . . . . . . 1277 . 495 . . . 615 353 . . 19 . . . . . 2012 . . 900 11 Kills 36 | . . 4 . . . . . . . 7 . 3 . . . 4 . . . . . . . . . 11 . . 7 . Allies Corrupted . | . . . . . . . . . . . . . . . . . . . . . . . . . . . . . . . Allies Melted 1 | . . . . . . . . . . . . . . . . . . . . . . . . . . . . 1 . . Intel | -11 -10 -10 -10 -9 -8 -8 -8 -8 -7 -7 -7 -7 -6 -6 -6 -6 -5 -5 -5 -5 -5 -5 -4 -4 -4 -3 -2 -2 -1 -1 ------- Run | Jun Mat Min Exi Min Mat Gar Mat Gar Fac Gar Fac Gar Fac Was Fac Gar Fac Was Fac Upp Upp Zhi Pro Fac Gar Res Res Tes Acc Com Robot Analysis Total 7 | . 2 . . . . . 1 . . . . . . . . . . . . . . 4 . . . . . . . . Derelict Logs Recovered 6 | . . 1 . 1 . . . . . . . . . . . . . . . 1 1 . 2 . . . . . . . Drone Launches . | . . . . . . . . . . . . . . . . . . . . . . . . . . . . . . . Drone Recoveries . | . . . . . . . . . . . . . . . . . . . . . . . . . . . . . . . Decoded 0b10 Intel 2 | . . . . . . . . . . . . . . . . . . . . . . . . 2 . . . . . . Traps 2 | . . . . . . . . . . . . . . . . . . . . . . . . 2 . . . . . . Exploration | -11 -10 -10 -10 -9 -8 -8 -8 -8 -7 -7 -7 -7 -6 -6 -6 -6 -5 -5 -5 -5 -5 -5 -4 -4 -4 -3 -2 -2 -1 -1 ------------- Run | Jun Mat Min Exi Min Mat Gar Mat Gar Fac Gar Fac Gar Fac Was Fac Gar Fac Was Fac Upp Upp Zhi Pro Fac Gar Res Res Tes Acc Com Turns Passed 31547 | 75 494 911 868 338 1294 1475 2010 1514 423 2005 395 1301 87 481 436 1524 575 233 113 832 948 278 542 375 2649 723 794 1828 452 5574 Spaces Moved 15018 | 49 223 523 394 134 549 800 390 796 236 843 211 630 69 415 271 788 333 102 48 345 520 163 304 184 1146 329 325 931 247 2720 Core 14 | 13 . . . . . . . . . 1 . . . . . . . . . . . . . . . . . . . . Treads 11599 | 36 223 523 394 134 505 800 390 796 236 92 3 106 . . . 59 . 40 48 345 520 163 304 184 1146 329 325 931 247 2720 Legs 982 | . . . . . 44 . . . . 750 188 . . . . . . . . . . . . . . . . . . . Wheels 2423 | . . . . . . . . . . . 20 524 69 415 271 729 333 62 . . . . . . . . . . . . Hover . | . . . . . . . . . . . . . . . . . . . . . . . . . . . . . . . Flight . | . . . . . . . . . . . . . . . . . . . . . . . . . . . . . . . Fastest Speed 50 | 50 160 160 160 240 145 145 152 152 152 97 130 93 111 111 111 110 130 150 240 160 160 160 160 157 150 150 140 140 147 141 Average Speed 157 | 130 160 160 215 240 159 146 152 157 167 192 177 144 111 111 111 146 146 185 240 162 160 160 160 159 154 150 151 145 147 157 Slowest Speed 1000 | 160 160 160 240 240 470 152 152 305 232 1000 240 400 111 111 111 240 150 240 240 240 160 160 160 161 165 150 160 147 147 226 Overloaded Moves . | . . . . . . . . . . . . . . . . . . . . . . . . . . . . . . . Propulsion Burnouts . | . . . . . . . . . . . . . . . . . . . . . . . . . . . . . . . Robots Hopped . | . . . . . . . . . . . . . . . . . . . . . . . . . . . . . . . Cave-ins Triggered 5 | . . . . . . . . . . . . . . . . . . . . . . . . . . . . . . 5 Teleports 1 | . . . . . . . . . . . . . . . . . . . . . . . . . . 1 . . . . Exploration Rate (%) 45 | 5 46 83 70 30 44 85 47 78 7 89 6 62 4 96 7 85 14 66 2 51 65 60 50 4 71 17 14 91 7 60 Regions Visited 30 Branch Regions 9 Pre-discovered Areas 8 | . . . 1 1 . . 2 . . . . . . . . . . . . . . 3 1 . . . . . . . Known Exits Taken 8 | . . . . . 1 . 1 . 1 . 1 . . . 1 . . . . . . . 1 1 . . . . 1 . Unknown Exits Taken 12 | 1 1 1 1 1 . . . . . . . . . . . . . . 1 1 1 1 . . . 1 1 1 . . Scrap Searched 5 | . . 1 . . . . . . . . . . . . . . . . . . 2 . 2 . . . . . . . Spaces Dug 692 | . 7 . . . 15 19 7 14 . 28 . . 1 . . . . . . 6 1 . 22 . 2 . 1 4 1 564 Terrain Destroyed 2158 | . 43 17 . . 34 24 12 38 . 40 . 72 2 . 6 9 2 . . 21 9 . 52 2 39 23 33 17 8 1655 Melee 7 | . . . . . . 7 . . . . . . . . . . . . . . . . . . . . . . . . Projectile 278 | . . . . . . . 12 . . 2 . 2 2 . 6 9 2 . . 21 9 . 3 2 39 23 32 17 8 89 AOE 1872 | . 43 17 . . 34 17 . 38 . 38 . 70 . . . . . . . . . . 49 . . . 1 . . 1565 Terrain Rammed . | . . . . . . . . . . . . . . . . . . . . . . . . . . . . . . . Walls Destroyed . | . . . . . . . . . . . . . . . . . . . . . . . . . . . . . . . Machines Disabled . | . . . . . . . . . . . . . . . . . . . . . . . . . . . . . . . Actions | -11 -10 -10 -10 -9 -8 -8 -8 -8 -7 -7 -7 -7 -6 -6 -6 -6 -5 -5 -5 -5 -5 -5 -4 -4 -4 -3 -2 -2 -1 -1 --------- Run | Jun Mat Min Exi Min Mat Gar Mat Gar Fac Gar Fac Gar Fac Was Fac Gar Fac Was Fac Upp Upp Zhi Pro Fac Gar Res Res Tes Acc Com Total 21447 | 59 305 559 414 139 804 972 1791 978 257 1119 225 924 76 438 365 999 391 141 47 532 592 181 334 241 1864 513 611 1392 337 3847 Wait 3378 | . 29 1 15 . 59 31 1369 66 . 85 2 127 1 . 58 52 31 16 . 117 28 . 2 28 484 119 63 155 15 425 Move 14989 | 48 222 522 393 133 549 799 390 795 236 842 210 629 69 414 271 786 333 101 47 344 519 162 303 184 1145 329 324 930 246 2714 Hop . | . . . . . . . . . . . . . . . . . . . . . . . . . . . . . . . Pick Up 231 | 5 11 4 3 . 21 10 1 1 3 5 2 19 . 5 2 10 1 3 . 6 4 2 . 3 26 18 11 20 5 30 Fast Attach 229 | 3 3 . 1 . 19 5 2 4 7 12 . 8 . 4 5 3 4 2 . 1 5 8 3 4 20 4 14 39 3 46 Attach 158 | 3 1 2 . . 10 7 . 4 2 7 3 11 2 3 1 8 . 4 . 2 3 . 2 3 17 3 17 10 4 29 Detach 45 | . . 1 1 . 1 1 . 2 1 . . 3 . 2 . 1 . 1 . . . . 2 . 1 . 10 7 1 10 Swap 65 | . 2 3 . . 8 8 2 3 1 9 . 2 1 1 . . . . . . . . . . 6 1 1 13 . 4 Drop 317 | . 5 . . . 29 10 2 6 3 7 3 12 . 9 7 9 2 6 . 3 4 9 3 3 40 2 16 56 5 66 Fire 1740 | . 31 17 1 6 106 60 25 92 4 84 5 82 3 . 21 90 20 8 . 59 29 . 19 16 118 35 153 161 57 438 Melee 41 | . . . . . . 41 . . . . . . . . . . . . . . . . . . . . . . . . Ram . | . . . . . . . . . . . . . . . . . . . . . . . . . . . . . . . Kick . | . . . . . . . . . . . . . . . . . . . . . . . . . . . . . . . Crush 93 | . 1 9 . . 2 . . . . . . 2 . . . . . . . . . . . . . 2 2 1 1 73 Escape Stasis 117 | . . . . . . . . 5 . 41 . 26 . . . 40 . . . . . . . . . . . . . 5 Rewire 44 | . . . . . . . . . . 27 . 3 . . . . . . . . . . . . 7 . . . . 7 Trap . | . . . . . . . . . . . . . . . . . . . . . . . . . . . . . . . Miscellaneous . | . . . . . . . . . . . . . . . . . . . . . . . . . . . . . . . Route ------- -11/Junkyard -10/Materials -10/Mines (discovered 2 exits: [*Mat] / *Exi) -10/Exiles -9/Mines -8/Materials (discovered 2 exits: *Fac / Gar) -8/Garrison (discovered 4 exits: *Mat x4) -8/Materials (discovered 3 exits: *Fac x2 / Gar) -8/Garrison (discovered 2 exits: *Fac x2) -7/Factory -7/Garrison (discovered 3 exits: *Fac x3) -7/Factory (discovered 6 exits: Fac x4 / [*Sto] / Gar) -7/Garrison (discovered 4 exits: *Fac x3 / [Fac]) -6/Factory -6/Waste -6/Factory (discovered 2 exits: *Fac / Gar) -6/Garrison (discovered 3 exits: *Fac x3) -5/Factory -5/Waste -5/Factory -5/Upper Caves -5/Upper Caves -5/Zhirov -4/Proximity Caves -4/Factory (discovered 4 exits: Res / Upp x2 / Gar) -4/Garrison (discovered 3 exits: *Res x3) -3/Research -2/Research -2/Testing -1/Access (discovered 2 exits: Sur / *Com) -1/Command (discovered 2 exits: *Sur x2) To Epsilon Eridani History --------- Turn | Location | Event 6 | -11/Junkyard | Discovered new exit (range 16) 76 | -11/Junkyard | Entered Materials 308 | -10/Materials | Build established: Mutant 351 | -10/Materials | Central database locked down 368 | -10/Materials | Discovered new exit (range 13) 570 | -10/Materials | Entered Mines 599 | -10/Mines | YI-UF0 nonchalantly dropped a Grenade Launcher on the ground 660 | -10/Mines | Destroyed YI-UF0 668 | -10/Mines | Found Prototype Storage 670 | -10/Mines | Identified YI-UF0's Bottomless Matter Pit 1142 | -10/Mines | Discovered new exit (range 3) 1162 | -10/Mines | Assisted by bots powering up and referring to "LRC-V3" 1358 | -10/Mines | A weapon hastily lodged in a ceiling crevice suddenly fell to the ground 1398 | -10/Mines | Received a Mining Laser from a helpful Derelict 1475 | -10/Mines | Deemed a non-threat by the Exiles lab entrance 1475 | -10/Mines | Discovered new exit (range 5) 1481 | -10/Mines | Entered Exiles 1481 | -10/Exiles | Accompanied by 1 ally 1521 | -10/Exiles | Met 8R-AWN 1549 | -10/Exiles | Met EX-HEX 1592 | -10/Exiles | Met EX-BIN 1613 | -10/Exiles | Met EX-DEC 1619 | -10/Exiles | Learned location of Zion (-7) 2014 | -10/Exiles | Aligned with FarCom system 2016 | -10/Exiles | Given EX-Vault access code 2071 | -10/Exiles | Opened EX-Vault 2086 | -10/Exiles | Found Trap Reconfigurator 2096 | -10/Exiles | Found Firepult 2102 | -10/Exiles | Found YOLO Cannon 2156 | -10/Exiles | Warned to stay clear of 0b10 Research branches 2171 | -10/Exiles | Exiles lab attacked by MAIN.C 2302 | -10/Exiles | Discovered new exit (range 14) 2335 | -10/Exiles | Attacked by the Exiles 2349 | -10/Exiles | Stole three prototypes: Trap Reconfigurator, Firepult, YOLO Cannon 2349 | -10/Exiles | Entered Mines 2647 | -9/Mines | Discovered new exit (range 5) 2687 | -9/Mines | Entered Materials 2687 | -8/Materials | Evolved 4 slots: Propulsion x2, Utility x2 2756 | -8/Materials | Repaired Lgt. Treads 2902 | -8/Materials | Lost 4 parts (1p1n2w) 3149 | -8/Materials | Build established: Scavenger-Mutant 3402 | -8/Materials | Discovered new exit (range 4) 3981 | -8/Materials | Identified exit to Garrison 3981 | -8/Materials | Entered Garrison 4014 | -8/Garrison | Installed Relay Interface Framework 4082 | -8/Garrison | Triggered checkpoint 4094 | -8/Garrison | Discovered new exit (range 6) 4284 | -8/Garrison | Garrison Relay disabled 4414 | -8/Garrison | Triggered checkpoint 4416 | -8/Garrison | Triggered checkpoint 4426 | -8/Garrison | Triggered checkpoint 4468 | -8/Garrison | Destroyed 9 combat bots 4548 | -8/Garrison | Discovered new exit (range 11) 4619 | -8/Garrison | Garrison Relay disabled 4814 | -8/Garrison | Garrison Relay disabled 4858 | -8/Garrison | Triggered checkpoint 4930 | -8/Garrison | Discovered new exit (range 13) 5060 | -8/Garrison | Spotted B-75 Beast 5086 | -8/Garrison | Core integrity fell below 50% 5132 | -8/Garrison | Destroyed B-75 Beast 5332 | -8/Garrison | Discovered new exit (range 9) 5421 | -8/Garrison | Learned Materials security intel 5456 | -8/Garrison | Entered Materials 7191 | -8/Materials | Repaired Adv. Treads 7242 | -8/Materials | Repaired Imp. Medium Treads 7343 | -8/Materials | Discovered new exit (range 16) 7452 | -8/Materials | Discovered new exit (range 12) 7466 | -8/Materials | Identified exit to Garrison 7466 | -8/Materials | Entered Garrison 7492 | -8/Garrison | Expanded RIF knowledge: Hotswap 7574 | -8/Garrison | Garrison Relay disabled 7729 | -8/Garrison | Triggered checkpoint 7758 | -8/Garrison | Triggered checkpoint 7844 | -8/Garrison | Discovered new exit (range 9) 7982 | -8/Garrison | Expanded RIF knowledge: Watcher Feeds 8284 | -8/Garrison | Garrison Relay disabled 8352 | -8/Garrison | Garrison Relay disabled 8430 | -8/Garrison | Triggered checkpoint 8604 | -8/Garrison | Garrison Relay disabled 8711 | -8/Garrison | Discovered new exit (range 15) 8775 | -8/Garrison | Spotted B-75 Beast 8775 | -8/Garrison | Spotted B-75 Beast 8800 | -8/Garrison | Destroyed B-75 Beast 8835 | -8/Garrison | Triggered checkpoint 8859 | -8/Garrison | Lost 4 parts (1p2n1u) 8876 | -8/Garrison | Destroyed B-75 Beast 8980 | -8/Garrison | Entered Factory 8980 | -7/Factory | Evolved 2 slots: Utility x2 9403 | -7/Factory | Identified exit to Garrison 9403 | -7/Factory | Entered Garrison 9514 | -7/Garrison | Triggered checkpoint 9622 | -7/Garrison | Destroyed 8 combat bots 9623 | -7/Garrison | Lost 5 parts (2n2u1w) 9636 | -7/Garrison | Triggered checkpoint 9678 | -7/Garrison | Lost 3 parts (1n1u1w) 9892 | -7/Garrison | Discovered new exit (range 11) 9981 | -7/Garrison | Triggered checkpoint 10147 | -7/Garrison | Found embedded Infiltrators 10182 | -7/Garrison | Discovered new exit (range 14) 10300 | -7/Garrison | Triggered checkpoint 10453 | -7/Garrison | Garrison Relay disabled 10830 | -7/Garrison | Triggered checkpoint 10904 | -7/Garrison | Garrison Relay disabled 10976 | -7/Garrison | Discovered new exit (range 12) 11050 | -7/Garrison | Expanded RIF knowledge: Autoassimilate 11239 | -7/Garrison | Learned Factory security intel 11408 | -7/Garrison | Entered Factory 11457 | -7/Factory | Identified exit to Factory 11524 | -7/Factory | Discovered new exit (range 15) 11798 | -7/Factory | Identified exit to Garrison 11803 | -7/Factory | Entered Garrison 11914 | -7/Garrison | Core integrity fell below 50% 11965 | -7/Garrison | Destroyed 8 combat bots 11990 | -7/Garrison | Triggered checkpoint 12112 | -7/Garrison | Garrison Relay disabled 12229 | -7/Garrison | Triggered checkpoint 12230 | -7/Garrison | Triggered checkpoint 12285 | -7/Garrison | Destroyed 11 combat bots 12410 | -7/Garrison | Triggered checkpoint 12447 | -7/Garrison | Expanded RIF knowledge: Autooverride 12506 | -7/Garrison | Discovered exit to Factory (range 9) 12615 | -7/Garrison | Garrison Relay disabled 12838 | -7/Garrison | Core integrity fell below 20% 12876 | -7/Garrison | Lost 5 parts (2p2n1u) 13074 | -7/Garrison | Discovered exit to Factory (range 10) 13095 | -7/Garrison | Discovered exit to Factory (range 9) 13095 | -7/Garrison | Discovered exit to Factory (range 61) 13095 | -7/Garrison | Discovered exit to Factory (range 50) 13095 | -7/Garrison | Discovered new exit (range 48) 13104 | -7/Garrison | Entered Factory 13104 | -6/Factory | Evolved 2 slots: Power x1, Utility x1 13191 | -6/Factory | Sucked down chute 13191 | -6/Factory | Entered Waste 13191 | -6/Waste | The area was eerily silent 13244 | -6/Waste | Build established: Mutant 13326 | -6/Waste | Discovered new exit (range 12) 13672 | -6/Waste | Entered Factory 13982 | -6/Factory | Discovered new exit (range 7) 14108 | -6/Factory | Identified exit to Garrison 14108 | -6/Factory | Entered Garrison 14214 | -6/Garrison | Triggered checkpoint 14376 | -6/Garrison | Garrison Relay disabled 14534 | -6/Garrison | Lost 3 parts (1p1u1w) 14586 | -6/Garrison | Build established: Scavenger-Mutant 14686 | -6/Garrison | Discovered new exit (range 14) 14780 | -6/Garrison | Triggered checkpoint 14809 | -6/Garrison | Garrison Relay disabled 15016 | -6/Garrison | Discovered new exit (range 14) 15179 | -6/Garrison | Discovered new exit (range 14) 15230 | -6/Garrison | Triggered checkpoint 15291 | -6/Garrison | Found embedded Infiltrators 15299 | -6/Garrison | Expanded RIF knowledge: Coupler Efficiency 15322 | -6/Garrison | Triggered checkpoint 15422 | -6/Garrison | Triggered checkpoint 15546 | -6/Garrison | Triggered checkpoint 15632 | -6/Garrison | Entered Factory 15632 | -5/Factory | Accompanied by 1 ally 15632 | -5/Factory | Evolved 2 slots: Utility x2 15670 | -5/Factory | Discovered new exit (range 5) 16207 | -5/Factory | Sucked down chute 16207 | -5/Factory | Entered Waste 16222 | -5/Waste | EMP discharged 16222 | -5/Waste | System corruption reached 10% 16250 | -5/Waste | Found Prototype Processor 16267 | -5/Waste | Spotted C-40 Crusher 16274 | -5/Waste | Destroyed C-40 Crusher 16287 | -5/Waste | Spotted C-40 Crusher 16295 | -5/Waste | Destroyed C-40 Crusher 16317 | -5/Waste | Spotted C-40 Crusher 16322 | -5/Waste | EMP discharged 16326 | -5/Waste | Destroyed C-40 Crusher 16333 | -5/Waste | Spotted C-40 Crusher 16355 | -5/Waste | Spotted C-40 Crusher 16355 | -5/Waste | Spotted C-40 Crusher 16368 | -5/Waste | Destroyed C-40 Crusher 16415 | -5/Waste | Discovered new exit (range 10) 16422 | -5/Waste | EMP discharged 16440 | -5/Waste | Entered Factory 16505 | -5/Factory | Discovered new exit (range 16) 16553 | -5/Factory | Entered Upper Caves 16857 | -5/Upper Caves | Spotted B-75 Beast 16914 | -5/Upper Caves | Destroyed B-75 Beast 17045 | -5/Upper Caves | Learned 8 Factory zone layouts 17257 | -5/Upper Caves | Attracted the attention of an 0b10 checkpoint 17357 | -5/Upper Caves | Discovered new exit (range 14) 17385 | -5/Upper Caves | Entered another Upper Caves area 17661 | -5/Upper Caves | Attracted the attention of an 0b10 checkpoint 17836 | -5/Upper Caves | Build established: Mutant 18108 | -5/Upper Caves | Learned Factory stockpile data 18211 | -5/Upper Caves | Discovered new exit (range 7) 18333 | -5/Upper Caves | Entered Zhirov 18334 | -5/Zhirov | Discovered new exit (range 3) 18363 | -5/Zhirov | Met Zhirov 18418 | -5/Zhirov | Found Alien Artifact 18418 | -5/Zhirov | Identified Integrated Reactor 18418 | -5/Zhirov | Installed Integrated Reactor, increased core energy generation (+10) 18503 | -5/Zhirov | Found Alien Artifact 18544 | -5/Zhirov | Learned location of Quarantine (-3) 18544 | -5/Zhirov | Learned location of Testing (-2) 18544 | -5/Zhirov | Learned location of Command (-1) 18554 | -5/Zhirov | Zhirov requested help retrieving the SGEMP Prototype 18611 | -5/Zhirov | Entered Proximity Caves 18923 | -4/Proximity Caves | Identified exit to Factory 19040 | -4/Proximity Caves | Attracted the attention of an 0b10 checkpoint 19153 | -4/Proximity Caves | Entered Factory 19153 | -4/Factory | Evolved 2 slots: Propulsion x2 19154 | -4/Factory | Identified exit to Upper Caves 19154 | -4/Factory | Identified exit to Research 19409 | -4/Factory | Fabricated Arm. Heavy Treads (x2) 19415 | -4/Factory | Lost 3 parts (3u) 19528 | -4/Factory | Identified exit to Garrison 19528 | -4/Factory | Entered Garrison 19619 | -4/Garrison | Spotted B-86 Titan 19736 | -4/Garrison | Triggered checkpoint 19771 | -4/Garrison | Discovered exit to Research (range 77) 19771 | -4/Garrison | Discovered exit to Research (range 52) 19771 | -4/Garrison | Discovered exit to Research (range 70) 20039 | -4/Garrison | Expanded RIF knowledge: Zone Cloak 20066 | -4/Garrison | Build established: Hacker-Mutant 20111 | -4/Garrison | Triggered checkpoint 20175 | -4/Garrison | Destroyed B-86 Titan 20441 | -4/Garrison | Expanded RIF knowledge: Autooverride 20608 | -4/Garrison | Found Antimissile System 20674 | -4/Garrison | Triggered checkpoint 20757 | -4/Garrison | Identified Exp. Core Analyzer 20884 | -4/Garrison | Spotted B-90 Cyclops 20946 | -4/Garrison | Destroyed B-90 Cyclops 21008 | -4/Garrison | Destroyed B-75 Beast 21224 | -4/Garrison | Found Quantum Capacitor 21326 | -4/Garrison | Rewired B-90 Cyclops 21342 | -4/Garrison | Rewired B-90 Cyclops 21481 | -4/Garrison | Build established: Mutant 21486 | -4/Garrison | Triggered checkpoint 21560 | -4/Garrison | Triggered checkpoint 21815 | -4/Garrison | Garrison Relay disabled 21947 | -4/Garrison | Garrison Relay disabled 22045 | -4/Garrison | Garrison Relay disabled 22177 | -4/Garrison | Entered Research 22177 | -3/Research | Accompanied by 2 allies 22177 | -3/Research | Evolved 2 slots: Utility x2 22427 | -3/Research | First assault squad dispatched 22504 | -3/Research | Repaired Hcp. Storage Unit 22687 | -3/Research | Discovered new exit (range 20) 22691 | -3/Research | Identified Transdimensional Reconstructor 22691 | -3/Research | Warped through subspace 22900 | -3/Research | Entered another Research area 22900 | -2/Research | Evolved 2 slots: Power x1, Utility x1 23107 | -2/Research | Found Prototype Processor 23107 | -2/Research | Identified Exp. Armor Integrity Analyzer 23400 | -2/Research | First assault squad dispatched 23534 | -2/Research | Destroyed 8 combat bots 23574 | -2/Research | Destroyed 8 combat bots 23578 | -2/Research | Discovered new exit (range 39) 23686 | -2/Research | Lost 3 parts (1n2u) 23694 | -2/Research | Entered Testing 23705 | -2/Testing | Found Prototype Hackware 23846 | -2/Testing | Identified System Mapper 23866 | -2/Testing | Found Prototype Protection 23866 | -2/Testing | Identified SHELL Armor 23872 | -2/Testing | Found Prototype Protection 23900 | -2/Testing | Found Prototype Device 23900 | -2/Testing | Identified Thermal Barrier 23938 | -2/Testing | Spotted Striker 23939 | -2/Testing | Spotted Striker 23944 | -2/Testing | First assault squad dispatched 23956 | -2/Testing | Spotted Alpha 7 23957 | -2/Testing | Destroyed Striker 23977 | -2/Testing | Destroyed Striker 23987 | -2/Testing | Destroyed Alpha 7 24003 | -2/Testing | Found Prototype Ballistic Gun 24003 | -2/Testing | Identified Multirail 24007 | -2/Testing | Found Prototype Device 24007 | -2/Testing | Identified Exp. ECM Suite 24038 | -2/Testing | Build established: Scavenger-Mutant 24068 | -2/Testing | Stole the SGEMP Prototype 24148 | -2/Testing | Protovariant out of control (PY-8G1EQUABPQ) 24148 | -2/Testing | Unleashed a protovariant (PY-8G1EQUABPQ) 24257 | -2/Testing | Identified Hvy. Regenerative Plating 24281 | -2/Testing | Found AEGIS Remote Shield 24464 | -2/Testing | Found Prototype Energy Gun 24464 | -2/Testing | Identified Hyp. EM Gauss Rifle 24668 | -2/Testing | Found Cld. Nova Cannon 24687 | -2/Testing | Discovered new exit (range 14) 24725 | -2/Testing | Found Prototype Energy Cannon 24725 | -2/Testing | Identified Disintegrator 24780 | -2/Testing | Found Prototype Device 24780 | -2/Testing | Identified Exp. Transmission Jammer 24818 | -2/Testing | Found Exp. Force Field 24821 | -2/Testing | Found Exp. Force Field 24841 | -2/Testing | Build established: Hacker-Mutant 24936 | -2/Testing | System corruption reached 10% 24985 | -2/Testing | Found Prototype Launcher 24985 | -2/Testing | Identified Point Singularity Launcher 25283 | -2/Testing | Found Prototype Energy Cannon 25283 | -2/Testing | Identified Imp. Potential Cannon 25522 | -2/Testing | Entered Access 25522 | -1/Access | Evolved 2 slots: Utility x2 25523 | -1/Access | Loaded intel: 122 machine locations 25523 | -1/Access | Loaded intel: 73 trap records 25523 | -1/Access | Identified exit to Surface 25523 | -1/Access | Discovered exit to Surface (range 169) 25523 | -1/Access | Identified exit to Command 25523 | -1/Access | Discovered exit to Command (range 98) 25523 | -1/Access | Delivered the SGEMP Prototype to Zhirov 25523 | -1/Access | Zhirov transferred Access data 25767 | -1/Access | Zhirov warped through subspace 25840 | -1/Access | Build established: Mutant 25960 | -1/Access | Spotted B-99 Colossus 25960 | -1/Access | Spotted B-99 Colossus 25974 | -1/Access | Entered Command 26269 | -1/Command | Spotted M Guard 26269 | -1/Command | Spotted M Guard 26269 | -1/Command | Spotted Combat Programmer 26271 | -1/Command | Destroyed M Guard 26272 | -1/Command | Spotted Combat Programmer 26283 | -1/Command | Destroyed M Guard 26307 | -1/Command | Destroyed Combat Programmer 26344 | -1/Command | Found Prototype Reactor 26344 | -1/Command | Identified Zero-point Reactor 26349 | -1/Command | Found Prototype Processor 26349 | -1/Command | Identified Exp. Targeting Computer 26355 | -1/Command | Found Prototype Launcher 26355 | -1/Command | Identified Hellfire Missile Launcher 26360 | -1/Command | Found Prototype Launcher 26360 | -1/Command | Identified Adv. Micro-nuke Launcher 26409 | -1/Command | Found Hvy. Reactive Plating 26608 | -1/Command | System corruption reached 10% 26608 | -1/Command | Met MAIN.C 26627 | -1/Command | 0b10 Conduit disabled 26678 | -1/Command | Build established: Scavenger-Mutant 26732 | -1/Command | Destroyed MAIN.C Shell 26733 | -1/Command | MAIN.C activated Command garrisons 26744 | -1/Command | Zhirov used SGEMP to disable MAIN.C 26907 | -1/Command | Found Prototype Reactor 26907 | -1/Command | Identified Vortex Chain Reactor 26918 | -1/Command | Found Prototype Protection 26918 | -1/Command | Identified Centrium Heavy Armor Plating 26924 | -1/Command | Found Prototype Device 26924 | -1/Command | Identified Beam Splitter 26927 | -1/Command | Found Prototype Device 26927 | -1/Command | Identified Exp. Focal Shield 26931 | -1/Command | Found Prototype Device 26931 | -1/Command | Identified Exp. System Purifier 27135 | -1/Command | Found Zero-point Reactor 27920 | -1/Command | Discovered exit to Surface (range 14) 28718 | -1/Command | Found Corrupted Exp. Target Analyzer 28754 | -1/Command | Discovered exit to Surface (range 8) 28866 | -1/Command | Found Exp. Core Analyzer 28874 | -1/Command | Found Exp. Core Analyzer 28880 | -1/Command | Found Prototype Device 28880 | -1/Command | Identified Adv. Kinecellerator 29720 | -1/Command | Discovered exit to Surface (range 35) 29720 | -1/Command | Discovered exit to Surface (range 102) 29720 | -1/Command | Extracted map data and part IDs from MAIN.C's data core 29724 | -1/Command | Found Exp. Powered Armor 31323 | -1/Command | Crushed by falling debris 31335 | -1/Command | Crushed by falling debris 31347 | -1/Command | Crushed by falling debris 31378 | -1/Command | Lost 3 parts (3u) 31381 | -1/Command | Crushed by falling debris 31384 | -1/Command | Crushed by falling debris 31415 | -1/Command | Lost 4 parts (1p3u) 31548 | *** | Escaped! Last Messages --------------- 31381_ System corrupted by crushing effect (+1). 31382_ The unstable cave ceiling collapses. 31384_ Crushed by falling debris. 31384_ Exp. Core Analyzer destroyed. 31384_ System corrupted by crushing effect (+1). 31392_ System corrupted: Component data lost. 31406_ Acquired Exp. Core Shielding. 31410_ System corrupted: Heat flow error (+104). 31418_ Acquired 20 matter. 31422_ Acquired Adv. Target Analyzer. 31425_ E21MLWPFUX,0G8W&A:=DP, CGGJQIT0Q7H 31428_ Quantum Router disabled. 31428_ Wheel melted. 31428_ K-01 Serf destroyed. 31443_ System corrupted: Component data lost. 31459_ Acquired 60 matter. 31462_ System corrupted: Heat flow error (+147). 31493_ System corrupted: Component data lost. 31512_ FCL> L4W7VJ/GFC6XFQHWR 31527_ C2DOZTTC1SP1YUENAF%JVEEZ8D:M5HEOZ5 < Map ----- +----------------------------------------------------+ | ###+##+## # # #########???????? | | ## # ######### ## !#???????? | | ##### # ########## # #???????? | | ## # ! !## + # #???????? | | ## # ## # # #???????? | | #####+### ## ## ## #???????? | | = # # #?######### ########### ##! #???????? | | + # #?????????# ########### #####+###???????? | | # # #?????????# #?????????? | | ## #?#######?# ######????? | | ##### #?# #?# # #????? | | ##### ### "T #?# # #????? | | %== "" !###= # #????? | | #####+###### *%!%= # ! #????? | | # !######## + #????? | | ! ##^ ^##??????# # #????? | | ## #???????# # #????? | | ## #???????########+##### # #????? | | ## #???????????# ## # #????? | | #########+##" #???????????# ## ##+###????? | | "# #???# ### #???????????# ## ## #??????? | | + #####+### #???????????# ## ## #??????? | | + ## ## #??????############### ## #??????? | | + ## ## #??????# ## #??????? | | "# ## = ## ###????# ## #??????? | | ## ## # "#????# @ ####### ## #??????? | | ## # * ##????# #?????# ## #??????? | | ## + !! #?????#####?????# ## #???#### | | ## # ! !!############????# ^ ^## #???#??? | | ## # % ## """" #????# ^^ ^## #???#?## | | # ######## ""R"" ###### ## #???#?#" | | # #??????# "" "" # ## #???#?#" | | # !#??????# + ##+###?#?#" | | # =#??????# # #!!! #?#?#" | | ##+######%+#?????## !! # #!!! #?#?#" | | ###=#?????# !! # #!!! #?#?#" | | ! !#?# #???#### !! # # #?#?#" | | ] #?# #####"########+### # #?#?# | | #?# #??????# #?# + ] #?#?# | | #?####### #??##### #?## # #?#?# | | "" "" #???????#!#??# #??# #! #?#?#" | | ""R"" #???????# #??# ######## # * #?#?#" | | """" #???????# #??# #??# # # ####?#?# | | ########???????# #??# #??# # ###????#?# | | ???????????????#!#??# #??# # ########## | | ???????????#####+####+#### # | | ???????????# ## / | | ???????????# ## # | | ???????????# ## # ###### | | ???????????# "" ###+## #??#?# | +----------------------------------------------------+ Best States ------------- Heat Dissipation 126 Coolant Potential 220 Energy Generation 93 Energy Capacity 850 Matter Stores 300 Matter Capacity 300 Sight Range 23 Robot Scan Range 16 Terrain Scan Range 24 Terrain Scan Density 10 ECM Strength 3 Jamming Range 22 Armor Coverage 3000 Resistance: KI 40 Resistance: TH 50 Core Shielding 40 Propulsion Shielding 66 Point Defense Rating 240 Weapon Cycling 25 Phase Shifting 15 Evasion (%) 55 Targeting Accuracy 28 Target Analysis 8 Core Analysis 12 Armor Integrity Analysis 50 Recoil Reduction 6 Particle Charging 25 Offensive Hacking 21 Relay Coupler Types 2 Relay Coupler Value 76 Item Schematics ----------------- Hvy. Siege Treads | -6/Factory | Hacked Arm. Heavy Treads | -5/Factory | Hacked Assault Drone Bay | -5/Zhirov | Free Exp. Heat Sink | -5/Zhirov | Free Exp. Optical Array | -5/Zhirov | Free Imp. Arc Thrower | -5/Zhirov | Free Cld. Nuclear Pulse Thruster | -2/Testing | Archive Exp. Terrain Scan Processor | -2/Testing | Archive Prc. Matter Filter | -2/Testing | Archive Exp. Gyrokinetic Inverter | -2/Testing | Archive Exp. Cooling System | -2/Testing | Archive Particle Accelerator | -2/Testing | Archive Imp. Diametric Drive | -2/Testing | Archive Exp. System Shield | -2/Testing | Archive Enh. Coil Gun | -2/Testing | Archive Enh. Biometal Leg | -2/Testing | Archive Exp. Force Field | -2/Testing | Archive Robot Schematics ------------------ R-10 Processor | -2/Testing | Archive R-06 Scavenger | -2/Testing | Archive H-88 Terminator | -2/Testing | Archive K-01 Serf | -2/Testing | Archive C-65 Expert | -2/Testing | Archive Fabricated ------------ Arm. Heavy Treads | x2 | -4/Factory Alien Tech Used ----------------- Integrated Reactor Transdimensional Reconstructor Achievements -------------- Sorry Old Pal Challenges ------------ None Game ------ Seed SeismicImprinterCoupler Manual? 0 Play Time 03:24:53 Cumulative 720.4 hours Start 2023.08.13 @ 14:35:04 End 2023.08.14 @ 17:00:44 Sessions 3 Manual Loads 0 Difficulty Rogue Special Mode None Game No. 465 Rogue 458 Adventurer 0 Explorer 7 Win Type 0 Total 53 Types 20/5/19/2/0/1/4/1/1 Lore% 90 Gallery% 96 Achievement% 83 Wizard Run 0 Options --------- ASCII 0 Keyboard 0 Movement Numpad Keybinds 0 Fullscreen 1 Font 18/X11Bold Map View 76x50 Tactical HUD 1 Map Filters NONE Filters NONE Steam 1 RUN: db0aeb4b-272f-4b5e-81a0-fe238b81914b